[Event "Swiss Youth-ch U14 2023"]
[Site "Olten"]
[Date "2023.05.28"]
[Round "6.1"]
[White "Malli, Suvirr"]
[Black "Gut, Raphael"]
[Result "0-1"]
[ECO "B45"]
[WhiteElo "2114"]
[BlackElo "1817"]
[Annotator "NA RC"]
[PlyCount "94"]
[EventDate "2023.05.26"]
[EventType "swiss"]
[EventCountry "SUI"]
[SourceTitle "playchess.com"]
[Source "ChessBase"]
[SourceQuality "1"]
[TimeControl "5400+30"]

1. e4 {[%emt 0:00:02]} c5 {[%emt 0:00:03]} 2. Nf3 {[%emt 0:00:17]} e6 {[%emt 0:00:05]} 3. d4 {[%emt 0:00:17]} cxd4 {[%emt 0:00:05]} 4. Nxd4 {[%emt 0:00:11]} Nf6 {[%emt 0:00:03]} 5. Nc3 {[%emt 0:00:49]} Nc6 {[%emt 0:00:27]} 6. Ndb5 {[%emt 0:00:10]} Bc5 {[%emt 0:00:10]} 7. Nd6+ {[%emt 0:00:14]} Ke7 {[%emt 0:00:06]} 8. Bf4 {[%emt 0:00:11]} e5 {[%emt 0:00:05]} 9. Nf5+ {[%emt 0:00:06]} Kf8 {[%emt 0:00:03]} 10. Bg5 {[%emt 0:00:18]} Bb4 {[%emt 0:02:00]} 11. Ne3 {[%emt 0:09:22]} h6 {[%emt 0:00:31]} 12. Bxf6 {[%emt 0:00:40]} Bxc3+ {[%emt 0:00:04]} 13. bxc3 {[%emt 0:00:09]} Qxf6 {[%emt 0:00:04]} 14. Bc4 {[%emt 0:04:04]} d6 {[%emt 0:01:02]} 15. O-O {[%emt 0:00:57]} h5 $14 {[%emt 0:00:24]} 16. Kh1 {[%emt 0:21:51]} Rh6 {[%emt 0:10:06]} 17. Rb1 {[%emt 0:10:52]} b6 {[%emt 0:19:31]} 18. Bd5 {[%emt 0:01:34]} Bd7 {[%emt 0:00:51]} 19. Qd3 {[%emt 0:11:00]} Rc8 {[%emt 0:05:55]} 20. Rbd1 {[%emt 0:04:42]} h4 {[%emt 0:04:42]} 21. f3 {[%emt 0:03:03]} Rg6 {[%emt 0:04:10]} 22. Ng4 {[%emt 0:02:00]} Qf4 {[%emt 0:00:45]} 23. Qa6 {[%emt 0:05:29]} Rc7 {[%emt 0:09:07]} 24. Bxc6 {[%emt 0:09:09]} Bxc6 {[%emt 0:00:31]} 25. Qc4 {[%emt 0:02:02]} Kg8 {[%emt 0:12:51]} 26. h3 {[%emt 0:03:47]} Kh7 {[%emt 0:05:13]} 27. Qd3 {[%emt 0:03:25]} Bd7 {[%emt 0:06:43]} 28. Ne3 {[%emt 0:02:59]} Qg3 {[%emt 0:01:06]} 29. Rd2 {[%emt 0:00:43]} Rc5 {[%emt 0:06:31]} 30. c4 {[%emt 0:01:19]} Be6 {[%emt 0:07:02]} 31. a3 {[%emt 0:00:38]} Rc6 {[%emt 0:02:24]} 32. Nd5 {[%emt 0:01:36]} Rc5 {[%emt 0:01:51]} 33. Ne3 {[%emt 0:01:29]} Ra5 {[%emt 0:00:33]} 34. Nd5 {[%emt 0:00:48]} a6 {[%emt 0:01:28]} 35. Nxb6 {[%emt 0:00:47]} Bxh3 {[%emt 0:00:32]} 36. gxh3 {[%emt 0:00:43]} Rxa3 {[%emt 0:00:03]} 37. c3 {[%emt 0:00:34]} Rxc3 {[%emt 0:00:03]} 38. Qb1 {[%emt 0:00:08]} Rb3 {[%emt 0:01:07]} 39. Qd1 {[%emt 0:00:27]} Rxb6 {[%emt 0:00:24]} 40. Rh2 {[%emt 0:00:16]} Rc6 {[%emt 0:01:06]} 41. Qa4 {[%emt 0:00:49]} Rb6 {[%emt 0:00:27]} 42. Qd1 {[%emt 0:00:09]} a5 {[%emt 0:00:13]} 43. Qa1 {[%emt 0:00:48]} Rb3 {[%emt 0:00:30]} 44. Qd1 {[%emt 0:00:46]} a4 {[%emt 0:00:05]} 45. Qe2 {[%emt 0:00:47]} a3 {[%emt 0:00:06]} 46. f4 {[%emt 0:00:18]} Rb2 {[%emt 0:00:45]} 47. f5 {[%emt 0:00:32]} Rg5 {[%emt 0:00:18]} 0-1

[Event "Swiss Youth-ch U14 2023"]
[Site "Olten"]
[Date "2023.05.28"]
[Round "6.2"]
[White "Kanana, Ziad"]
[Black "Gut, Lionel"]
[Result "0-1"]
[ECO "B91"]
[WhiteElo "1828"]
[BlackElo "2054"]
[Annotator "NA RC"]
[PlyCount "66"]
[EventDate "2023.05.26"]
[EventType "swiss"]
[EventCountry "SUI"]
[SourceTitle "playchess.com"]
[Source "ChessBase"]
[SourceQuality "1"]
[TimeControl "5400+30"]

1. e4 {[%emt 0:00:13]} c5 {[%emt 0:00:11]} 2. Nf3 {[%emt 0:00:08]} d6 {[%emt 0:00:13]} 3. d4 {[%emt 0:00:06]} cxd4 {[%emt 0:00:15]} 4. Nxd4 {[%emt 0:00:05]} Nf6 {[%emt 0:00:21]} 5. Nc3 {[%emt 0:00:06]} a6 {[%emt 0:00:11]} 6. g3 {[%emt 0:00:10]} e5 {[%emt 0:00:08]} 7. Nde2 {[%emt 0:00:04]} Be7 {[%emt 0:00:12]} 8. Bg2 {[%emt 0:00:09]} h5 {[%emt 0:00:08]} 9. h3 {[%emt 0:01:05]} b5 {[%emt 0:00:20]} 10. Nd5 {[%emt 0:01:38]} Nxd5 {[%emt 0:00:07]} 11. Qxd5 {[%emt 0:00:05]} Ra7 {[%emt 0:00:11]} 12. O-O {[%emt 0:08:24]} O-O {[%emt 0:01:02]} 13. Be3 {[%emt 0:01:31]} Rb7 {[%emt 0:00:37]} 14. Rfd1 {[%emt 0:02:05]} Qc7 {[%emt 0:02:32]} 15. Qd2 $11 {[%emt 0:04:06]} Nd7 {[%emt 0:04:14]} 16. f4 {[%emt 0:07:29]} Nf6 {[%emt 0:05:06]} 17. Nc3 {[%emt 0:05:19]} b4 {[%emt 0:02:54]} 18. Nd5 {[%emt 0:00:54]} Nxd5 {[%emt 0:00:04]} 19. exd5 {[%emt 0:01:12]} Bf6 {[%emt 0:00:51]} 20. Rab1 {[%emt 0:11:31]} Bf5 {[%emt 0:07:09]} 21. Rdc1 {[%emt 0:00:40]} Qd7 {[%emt 0:01:29]} 22. Kh2 {[%emt 0:02:24]} a5 {[%emt 0:01:24]} 23. fxe5 {[%emt 0:02:20]} Bxe5 {[%emt 0:00:39]} 24. Bd4 {[%emt 0:03:42]} Bxd4 {[%emt 0:03:18]} 25. Qxd4 {[%emt 0:00:01]} Rc7 {[%emt 0:00:39]} 26. Be4 {[%emt 0:07:38]} Re8 {[%emt 0:05:44]} 27. Re1 {[%emt 0:01:28]} Bxe4 {[%emt 0:00:14]} 28. Rxe4 {[%emt 0:00:17]} Rxc2+ {[%emt 0:00:07]} 29. Kg1 {[%emt 0:00:15]} Rxe4 {[%emt 0:00:06]} 30. Qxe4 {[%emt 0:00:13]} Qa7+ {[%emt 0:00:21]} 31. Kh1 {[%emt 0:00:16]} Qf2 {[%emt 0:00:07]} 32. Qe8+ {[%emt 0:00:14]} Kh7 {[%emt 0:00:11]} 33. Qe4+ {[%emt 0:00:10]} f5 {[%emt 0:00:18]} 0-1

[Event "Swiss Youth-ch U14 2023"]
[Site "Olten"]
[Date "2023.05.28"]
[Round "6.3"]
[White "Akinkhov, Mikhail"]
[Black "Breyer, Thierry"]
[Result "1/2-1/2"]
[ECO "E11"]
[WhiteElo "1495"]
[BlackElo "1697"]
[Annotator "NA RC"]
[PlyCount "171"]
[EventDate "2023.05.26"]
[EventType "swiss"]
[EventCountry "SUI"]
[SourceTitle "playchess.com"]
[Source "ChessBase"]
[SourceQuality "1"]
[TimeControl "5400+30"]

1. d4 {[%emt 0:00:02]} Nf6 {[%emt 0:00:15]} 2. c4 {[%emt 0:00:05]} e6 {[%emt 0:00:05]} 3. Nf3 {[%emt 0:00:12]} Bb4+ {[%emt 0:00:15]} 4. Nbd2 {[%emt 0:02:17]} b6 {[%emt 0:08:26]} 5. a3 {[%emt 0:01:38]} Bxd2+ {[%emt 0:00:16]} 6. Bxd2 {[%emt 0:00:35]} Bb7 {[%emt 1:24:13]} 7. Bg5 {[%emt 0:02:24]} d6 {[%emt 0:00:00]} 8. e3 {[%emt 0:01:30]} Nbd7 {[%emt 0:00:00]} 9. Be2 {[%emt 0:02:14]} O-O {[%emt 0:00:00]} 10. O-O {[%emt 0:00:44]} h6 {[%emt 0:00:00]} 11. Bh4 {[%emt 0:00:30]} a5 {[%emt 0:00:00]} 12. b3 {[%emt 0:02:50]} Re8 {[%emt 0:00:00]} 13. Re1 {[%emt 0:03:10]} Qc8 {[%emt 0:00:00]} 14. Rc1 {[%emt 0:04:48]} c5 {[%emt 0:00:00]} 15. Qc2 {[%emt 0:06:09]} Be4 {[%emt 0:00:00]} 16. Qc3 {[%emt 0:05:15]} Bf5 {[%emt 0:00:00]} 17. Bd3 {[%emt 0:07:46]} Ne4 {[%emt 0:00:00]} 18. Qc2 {[%emt 0:02:18]} Qb7 {[%emt 0:00:00]} 19. Nd2 {[%emt 0:03:29]} Nxd2 {[%emt 0:00:00]} 20. Qxd2 {[%emt 0:00:59]} Bxd3 {[%emt 0:00:00]} 21. Qxd3 {[%emt 0:00:15]} Nf8 {[%emt 0:00:00]} 22. e4 {[%emt 0:08:59]} cxd4 {[%emt 0:00:00]} 23. Qxd4 {[%emt 0:00:44]} e5 {[%emt 0:00:00]} 24. Qd2 {[%emt 0:05:38]} Qc6 {[%emt 0:00:00]} 25. Rcd1 {[%emt 0:05:28]} Ng6 {[%emt 0:00:00]} 26. Bg3 {[%emt 0:00:23]} Rad8 {[%emt 0:00:00]} 27. Qd5 {[%emt 0:13:08]} Ne7 {[%emt 0:00:00]} 28. Qxc6 {[%emt 0:01:56]} Nxc6 {[%emt 0:00:00]} 29. a4 {[%emt 0:01:43]} Nd4 {[%emt 0:00:00]} 30. Rd3 {[%emt 0:00:54]} Kf8 {[%emt 0:00:00]} 31. f3 {[%emt 0:00:39]} Ne6 {[%emt 0:00:00]} 32. Bf2 {[%emt 0:02:15]} Nc5 {[%emt 0:00:00]} 33. Bxc5 {[%emt 0:02:05]} bxc5 {[%emt 0:00:00]} 34. Red1 {[%emt 0:00:59]} Ke7 {[%emt 0:00:00]} 35. Kf2 {[%emt 0:00:25]} Rd7 {[%emt 0:00:00]} 36. Ke3 {[%emt 0:00:53]} Rb8 {[%emt 0:00:00]} 37. Rc3 {[%emt 0:00:26]} Rdb7 {[%emt 0:00:01]} 38. Rdd3 {[%emt 0:00:11]} g6 {[%emt 0:01:08]} 39. Kd2 {[%emt 0:04:25]} Ke6 {[%emt 0:01:48]} 40. Ke3 {[%emt 0:01:41]} Rb6 {[%emt 0:00:23]} 41. g3 {[%emt 0:03:55]} Rf8 {[%emt 0:01:49]} 42. Kf2 {[%emt 0:01:11]} f5 {[%emt 0:00:34]} 43. Kg2 {[%emt 0:00:16]} Rb7 {[%emt 0:03:07]} 44. Rd2 {[%emt 0:01:04]} Rb6 {[%emt 0:03:00]} 45. Rdd3 {[%emt 0:00:46]} Rbb8 {[%emt 0:00:30]} 46. Rd2 {[%emt 0:00:28]} Rf6 {[%emt 0:00:14]} 47. Rcd3 {[%emt 0:00:54]} Ke7 {[%emt 0:00:31]} 48. Re2 {[%emt 0:02:06]} g5 {[%emt 0:01:12]} 49. Rf2 {[%emt 0:01:03]} Rbf8 {[%emt 0:00:27]} 50. Rdd2 {[%emt 0:00:36]} Ke6 {[%emt 0:01:09]} 51. Rde2 {[%emt 0:00:29]} R6f7 {[%emt 0:01:32]} 52. Rb2 {[%emt 0:00:44]} Rb8 {[%emt 0:00:23]} 53. Rf1 {[%emt 0:00:24]} h5 {[%emt 0:01:54]} 54. h3 {[%emt 0:00:29]} Rbf8 {[%emt 0:01:19]} 55. Rff2 {[%emt 0:00:36]} g4 {[%emt 0:00:38]} 56. exf5+ {[%emt 0:00:45]} Rxf5 {[%emt 0:01:42]} 57. fxg4 {[%emt 0:00:00]} hxg4 {[%emt 0:00:45]} 58. h4 {[%emt 0:00:00]} Rf3 {[%emt 0:00:18]} 59. Rbe2 {[%emt 0:01:06]} R8f6 {[%emt 0:00:36]} 60. Rb2 {[%emt 0:00:31]} e4 {[%emt 0:00:20]} 61. Rxf3 {[%emt 0:00:17]} Rxf3 {[%emt 0:00:34]} 62. Rb1 {[%emt 0:01:01]} Ke5 {[%emt 0:00:10]} 63. h5 {[%emt 0:00:20]} Kf5 {[%emt 0:00:39]} 64. h6 {[%emt 0:00:33]} Kg6 {[%emt 0:00:13]} 65. Rd1 {[%emt 0:00:15]} Rf6 {[%emt 0:00:28]} 66. Rh1 {[%emt 0:00:44]} Kh7 {[%emt 0:01:15]} 67. Rh4 {[%emt 0:00:08]} Rxh6 {[%emt 0:01:14]} 68. Rxg4 {[%emt 0:00:06]} Re6 {[%emt 0:00:25]} 69. Kf2 {[%emt 0:00:36]} Re7 {[%emt 0:00:12]} 70. Ke3 {[%emt 0:00:16]} Rb7 {[%emt 0:00:08]} 71. Kxe4 {[%emt 0:00:29]} Rxb3 {[%emt 0:00:12]} 72. Kd5 {[%emt 0:00:22]} Rd3+ {[%emt 0:00:12]} 73. Kc6 {[%emt 0:00:13]} Rd4 {[%emt 0:00:10]} 74. Rf4 {[%emt 0:00:39]} Kg6 {[%emt 0:00:49]} 75. Kb5 {[%emt 0:00:31]} Kg5 {[%emt 0:00:16]} 76. Kxa5 {[%emt 0:00:30]} Rd3 {[%emt 0:00:12]} 77. Kb6 {[%emt 0:00:59]} Rxg3 {[%emt 0:00:09]} 78. Rf8 {[%emt 0:00:35]} Rc3 {[%emt 0:00:28]} 79. Kb5 {[%emt 0:01:16]} Rb3+ {[%emt 0:00:09]} 80. Kc6 {[%emt 0:00:33]} Rb4 {[%emt 0:00:23]} 81. Kxd6 {[%emt 0:00:26]} Rxc4 {[%emt 0:00:09]} 82. a5 {[%emt 0:00:34]} Ra4 {[%emt 0:00:17]} 83. Rc8 {[%emt 0:00:36]} c4 {[%emt 0:01:23]} 84. Ke5 {[%emt 0:00:33]} Rxa5+ {[%emt 0:01:12]} 85. Kd4 {[%emt 0:00:05]} Ra1 {[%emt 0:00:25]} 86. Rxc4 {[%emt 0:00:17]} 1/2-1/2

[Event "Swiss Youth-ch U14 2023"]
[Site "Olten"]
[Date "2023.05.28"]
[Round "6.4"]
[White "Haas, Anthony"]
[Black "Delangle, Alexander"]
[Result "1/2-1/2"]
[ECO "D11"]
[WhiteElo "1530"]
[BlackElo "1621"]
[Annotator "NA RC"]
[PlyCount "129"]
[EventDate "2023.05.26"]
[EventType "swiss"]
[EventCountry "SUI"]
[SourceTitle "playchess.com"]
[Source "ChessBase"]
[SourceQuality "1"]
[TimeControl "5400+30"]

1. d4 {[%emt 0:00:01]} d5 {[%emt 0:00:04]} 2. c4 {[%emt 0:00:10]} c6 {[%emt 0:00:04]} 3. g3 {[%emt 0:00:03]} Nf6 {[%emt 0:00:20]} 4. Bg2 {[%emt 0:00:10]} Bf5 {[%emt 0:00:26]} 5. Nf3 {[%emt 0:00:42]} e6 {[%emt 0:01:09]} 6. O-O {[%emt 0:00:16]} h6 {[%emt 0:01:06]} 7. Nc3 {[%emt 0:00:24]} Nbd7 {[%emt 0:05:59]} 8. a3 {[%emt 0:08:01]} Bd6 {[%emt 0:05:54]} 9. Re1 {[%emt 0:04:20]} O-O {[%emt 0:07:15]} 10. Nh4 {[%emt 0:09:55]} Bh7 {[%emt 0:08:34]} 11. e4 {[%emt 0:09:11]} dxe4 {[%emt 0:02:04]} 12. Nxe4 {[%emt 0:00:27]} Be7 {[%emt 0:09:12]} 13. Nc3 {[%emt 0:07:27]} Nb6 {[%emt 0:03:22]} 14. b3 {[%emt 0:06:33]} Qd7 {[%emt 0:05:51]} 15. Be3 {[%emt 0:02:45]} Rfd8 {[%emt 0:03:57]} 16. h3 {[%emt 0:03:18]} Rac8 {[%emt 0:02:57]} 17. Qe2 {[%emt 0:05:17]} c5 {[%emt 0:06:01]} 18. Red1 {[%emt 0:07:30]} Qe8 {[%emt 0:08:05]} 19. Bxb7 {[%emt 0:02:17]} Rc7 {[%emt 0:02:51]} 20. Bg2 {[%emt 0:00:24]} cxd4 {[%emt 0:01:59]} 21. Bxd4 {[%emt 0:01:25]} Qf8 {[%emt 0:01:49]} 22. Nb5 {[%emt 0:02:13]} Rcd7 {[%emt 0:08:28]} 23. Bc6 {[%emt 0:00:31]} Rxd4 {[%emt 0:01:13]} 24. Nxd4 {[%emt 0:01:48]} Bxa3 {[%emt 0:01:24]} 25. Nc2 {[%emt 0:03:54]} Rxd1+ {[%emt 0:01:52]} 26. Rxd1 {[%emt 0:00:22]} Bb2 {[%emt 0:01:27]} 27. Nd4 {[%emt 0:02:05]} Ba3 {[%emt 0:00:43]} 28. Nb5 {[%emt 0:04:53]} Bc5 {[%emt 0:00:34]} 29. Nxa7 {[%emt 0:02:00]} Qb8 {[%emt 0:00:33]} 30. b4 {[%emt 0:06:43]} Bxb4 {[%emt 0:02:20]} 31. Nb5 {[%emt 0:00:58]} g5 {[%emt 0:00:35]} 32. Nf3 {[%emt 0:01:22]} Bc5 {[%emt 0:00:44]} 33. Qe5 {[%emt 0:00:42]} Qxe5 {[%emt 0:01:18]} 34. Nxe5 {[%emt 0:00:02]} Be4 {[%emt 0:00:30]} 35. Bxe4 {[%emt 0:00:39]} Nxe4 {[%emt 0:00:06]} 36. Nd3 {[%emt 0:00:11]} Be7 {[%emt 0:00:51]} 37. Rc1 {[%emt 0:00:15]} Nd7 {[%emt 0:00:20]} 38. Nc3 {[%emt 0:01:23]} Nec5 {[%emt 0:00:23]} 39. Nxc5 {[%emt 0:00:08]} Nxc5 {[%emt 0:00:06]} 40. Nb5 {[%emt 0:01:05]} Kg7 {[%emt 0:00:21]} 41. Kf1 {[%emt 0:01:15]} Kf6 {[%emt 0:00:13]} 42. Nd4 {[%emt 0:00:46]} Bd6 {[%emt 0:00:52]} 43. Ke2 {[%emt 0:00:37]} e5 {[%emt 0:01:16]} 44. Nb5 {[%emt 0:00:20]} Be7 {[%emt 0:00:34]} 45. Nc3 {[%emt 0:00:24]} Ke6 {[%emt 0:00:20]} 46. Nd5 {[%emt 0:01:25]} Bd6 {[%emt 0:00:23]} 47. Ra1 {[%emt 0:00:32]} Nd7 {[%emt 0:00:41]} 48. Ra6 {[%emt 0:00:48]} e4 {[%emt 0:00:30]} 49. Nc3 {[%emt 0:01:06]} Nc5 {[%emt 0:00:53]} 50. Ra8 {[%emt 0:00:13]} Kf5 {[%emt 0:00:33]} 51. Na4 {[%emt 0:00:46]} Nb3 {[%emt 0:00:40]} 52. Rc8 {[%emt 0:00:17]} Nd4+ {[%emt 0:00:31]} 53. Kf1 {[%emt 0:00:26]} Ke6 {[%emt 0:00:19]} 54. Rh8 {[%emt 0:00:30]} f6 {[%emt 0:01:07]} 55. c5 {[%emt 0:01:18]} Be7 {[%emt 0:00:19]} 56. Rc8 {[%emt 0:00:46]} Nb5 {[%emt 0:01:05]} 57. c6 {[%emt 0:01:33]} Kd5 {[%emt 0:00:32]} 58. Nb6+ {[%emt 0:00:23]} Kc5 {[%emt 0:00:14]} 59. Na4+ {[%emt 0:00:29]} Kd5 {[%emt 0:00:25]} 60. Nb6+ {[%emt 0:00:44]} Kc5 {[%emt 0:00:06]} 61. Na4+ {[%emt 0:00:28]} Kd5 {[%emt 0:00:06]} 62. Nb2 {[%emt 0:00:44]} Na7 {[%emt 0:00:17]} 63. Rh8 {[%emt 0:00:15]} Nxc6 {[%emt 0:00:10]} 64. Rxh6 {[%emt 0:00:06]} Nd4 {[%emt 0:00:56]} 65. Rh8 {[%emt 0:00:20]} 1/2-1/2

[Event "Swiss Youth-ch U14 2023"]
[Site "Olten"]
[Date "2023.05.28"]
[Round "6.5"]
[White "Gade, Niels Severin"]
[Black "Stoll, Arturo"]
[Result "1/2-1/2"]
[ECO "B80"]
[WhiteElo "1689"]
[BlackElo "1607"]
[Annotator "NA RC"]
[PlyCount "95"]
[EventDate "2023.05.26"]
[EventType "swiss"]
[EventCountry "SUI"]
[SourceTitle "playchess.com"]
[Source "ChessBase"]
[SourceQuality "1"]
[TimeControl "5400+30"]

1. e4 {[%emt 0:00:02]} c5 {[%emt 0:00:07]} 2. Nf3 {[%emt 0:00:06]} d6 {[%emt 0:00:21]} 3. d4 {[%emt 0:00:09]} cxd4 {[%emt 0:00:07]} 4. Nxd4 {[%emt 0:00:07]} Nf6 {[%emt 0:00:06]} 5. Nc3 {[%emt 0:00:11]} a6 {[%emt 0:00:23]} 6. Be3 {[%emt 0:00:11]} e6 {[%emt 0:00:05]} 7. f3 {[%emt 0:01:35]} Be7 {[%emt 0:00:14]} 8. Qd2 {[%emt 0:01:37]} b5 {[%emt 0:00:30]} 9. a4 {[%emt 0:05:31]} b4 {[%emt 0:02:50]} 10. Na2 {[%emt 0:01:02]} a5 {[%emt 0:05:45]} 11. Bb5+ {[%emt 0:00:50]} Bd7 {[%emt 0:00:18]} 12. O-O {[%emt 0:00:49]} O-O {[%emt 0:01:42]} 13. Rfd1 {[%emt 0:02:13]} d5 {[%emt 0:01:06]} 14. exd5 {[%emt 0:00:34]} Nxd5 {[%emt 0:00:14]} 15. c4 {[%emt 0:04:51]} bxc3 {[%emt 0:01:02]} 16. Nxc3 {[%emt 0:01:07]} Bb4 {[%emt 0:07:25]} 17. Qd3 {[%emt 0:01:34]} Nxe3 {[%emt 0:03:01]} 18. Qxe3 {[%emt 0:01:35]} Qb6 {[%emt 0:00:32]} 19. Kh1 {[%emt 0:01:36]} Ra7 {[%emt 0:13:10]} 20. Rac1 {[%emt 0:06:53]} Rd8 {[%emt 0:02:47]} 21. Qe2 {[%emt 0:04:45]} Rc7 {[%emt 0:02:57]} 22. Nb3 {[%emt 0:11:03]} Rdc8 {[%emt 0:02:03]} 23. Bxd7 {[%emt 0:12:19]} Nxd7 {[%emt 0:00:56]} 24. Nb5 {[%emt 0:00:55]} Rxc1 {[%emt 0:00:36]} 25. Rxc1 {[%emt 0:00:48]} Rxc1+ {[%emt 0:00:13]} 26. Nxc1 {[%emt 0:00:12]} Qc6 {[%emt 0:02:30]} 27. Nb3 {[%emt 0:01:27]} Qd5 {[%emt 0:00:13]} 28. Qc2 {[%emt 0:01:12]} Nc5 {[%emt 0:01:26]} 29. Nxc5 {[%emt 0:00:30]} Qxc5 {[%emt 0:00:04]} 30. Qxc5 {[%emt 0:01:20]} Bxc5 {[%emt 0:00:02]} 31. g4 {[%emt 0:00:57]} Kf8 {[%emt 0:00:20]} 32. Kg2 {[%emt 0:00:18]} Ke7 {[%emt 0:00:05]} 33. Kf1 {[%emt 0:00:20]} e5 {[%emt 0:00:32]} 34. Ke2 {[%emt 0:00:47]} Bb4 {[%emt 0:00:18]} 35. Kd3 {[%emt 0:01:02]} Ke6 {[%emt 0:01:40]} 36. Ke4 {[%emt 0:02:28]} f6 {[%emt 0:01:45]} 37. Nc7+ {[%emt 0:01:07]} Kd7 {[%emt 0:00:09]} 38. Nd5 {[%emt 0:00:17]} Bd6 {[%emt 0:00:57]} 39. h4 {[%emt 0:01:10]} Ke6 {[%emt 0:00:14]} 40. h5 {[%emt 0:01:29]} g6 {[%emt 0:00:05]} 41. hxg6 {[%emt 0:00:13]} hxg6 {[%emt 0:00:01]} 42. Ne3 {[%emt 0:02:23]} Bb4 {[%emt 0:01:40]} 43. b3 {[%emt 0:01:40]} Bd6 {[%emt 0:00:18]} 44. Nc4 {[%emt 0:04:01]} f5+ {[%emt 0:00:07]} 45. gxf5+ {[%emt 0:00:15]} gxf5+ {[%emt 0:00:05]} 46. Kd3 {[%emt 0:00:31]} Bb4 {[%emt 0:00:19]} 47. Ne3 {[%emt 0:00:51]} Bc5 {[%emt 0:09:17]} 48. Nc4 {[%emt 0:00:41]} 1/2-1/2

[Event "Swiss Youth-ch U14 2023"]
[Site "Olten"]
[Date "2023.05.28"]
[Round "6.6"]
[White "Udipi, Kala Kishan"]
[Black "Breyer, Philippe"]
[Result "1-0"]
[ECO "A45"]
[WhiteElo "1904"]
[BlackElo "1766"]
[Annotator "RC"]
[PlyCount "23"]
[EventDate "2023.05.26"]
[EventType "swiss"]
[EventCountry "SUI"]
[SourceTitle "playchess.com"]
[Source "ChessBase"]
[SourceQuality "1"]
[TimeControl "5400+30"]

1. d4 {[%emt 0:00:01]} Nf6 {[%emt 0:00:09]} 2. g3 {[%emt 0:00:28]} e6 {[%emt 0:00:25]} 3. Bg2 {[%emt 0:00:12]} c5 {[%emt 0:00:47]} 4. c3 {[%emt 0:00:25]} Nc6 {[%emt 0:00:27]} 5. e4 {[%emt 0:01:15]} cxd4 {[%emt 0:03:11]} 6. cxd4 {[%emt 0:00:29]} Bb4+ {[%emt 0:01:49]} 7. Nc3 {[%emt 0:00:33]} d6 {[%emt 0:01:16]} 8. Nge2 {[%emt 0:00:24]} e5 {[%emt 0:04:23]} 9. d5 {[%emt 0:00:28]} Ne7 {[%emt 0:00:41]} 10. Qa4+ {[%emt 0:00:36]} Nc6 {[%emt 0:00:54]} 11. dxc6 {[%emt 0:00:15]} Bxc3+ {[%emt 0:00:05]} 12. Nxc3 {[%emt 0:00:08]} 1-0

[Event "Swiss Youth-ch U14 2023"]
[Site "Olten"]
[Date "2023.05.28"]
[Round "6.7"]
[White "Paholok, Adam"]
[Black "Gafner, Lancelot"]
[Result "1/2-1/2"]
[ECO "D05"]
[WhiteElo "1556"]
[BlackElo "1641"]
[Annotator "NA RC"]
[PlyCount "91"]
[EventDate "2023.05.26"]
[EventType "swiss"]
[EventCountry "SUI"]
[SourceTitle "playchess.com"]
[Source "ChessBase"]
[SourceQuality "1"]
[TimeControl "5400+30"]

1. d4 {[%emt 0:00:02]} d5 {[%emt 0:00:06]} 2. Nf3 {[%emt 0:00:05]} Nf6 {[%emt 0:00:12]} 3. e3 {[%emt 0:00:04]} e6 {[%emt 0:00:26]} 4. Bd3 {[%emt 0:00:04]} Bd6 {[%emt 0:01:28]} 5. Nbd2 {[%emt 0:00:07]} c5 {[%emt 0:01:00]} 6. c3 {[%emt 0:00:03]} Nc6 {[%emt 0:00:16]} 7. O-O {[%emt 0:00:17]} Qc7 {[%emt 0:02:21]} 8. e4 {[%emt 0:00:53]} dxe4 {[%emt 0:02:06]} 9. Nxe4 {[%emt 0:00:07]} Nxe4 {[%emt 0:02:12]} 10. Bxe4 {[%emt 0:00:03]} O-O {[%emt 0:06:28]} 11. h3 {[%emt 0:03:37]} h6 {[%emt 0:04:44]} 12. Nh4 {[%emt 0:09:31]} cxd4 {[%emt 0:23:58]} 13. cxd4 {[%emt 0:02:21]} e5 {[%emt 0:02:09]} 14. dxe5 {[%emt 0:06:13]} Bxe5 {[%emt 0:01:55]} 15. Nf5 {[%emt 0:02:26]} Ne7 {[%emt 0:10:52]} 16. Nxe7+ {[%emt 0:08:15]} Qxe7 {[%emt 0:01:20]} 17. Qf3 {[%emt 0:00:07]} Rb8 {[%emt 0:05:52]} 18. Rb1 {[%emt 0:01:07]} Be6 {[%emt 0:06:14]} 19. b3 {[%emt 0:00:42]} b6 {[%emt 0:01:03]} 20. Re1 {[%emt 0:01:26]} Qf6 {[%emt 0:02:09]} 21. Qh5 {[%emt 0:08:51]} Rbc8 {[%emt 0:04:44]} 22. Re3 {[%emt 0:01:58]} Rc5 {[%emt 0:06:22]} 23. Qe2 {[%emt 0:01:30]} Rfc8 {[%emt 0:00:45]} 24. Ba3 {[%emt 0:00:34]} R5c7 {[%emt 0:01:22]} 25. Rd1 {[%emt 0:02:53]} Rc3 {[%emt 0:01:21]} 26. Rdd3 {[%emt 0:06:23]} Rc2 {[%emt 0:01:25]} 27. Rd8+ {[%emt 0:04:01]} Qxd8 {[%emt 0:01:53]} 28. Bxc2 {[%emt 0:00:05]} Bb8 {[%emt 0:04:40]} 29. Bb2 {[%emt 0:00:29]} Qc7 {[%emt 0:01:32]} 30. Be5 {[%emt 0:21:50]} Qxc2 {[%emt 0:00:47]} 31. Qxc2 {[%emt 0:00:09]} Rxc2 {[%emt 0:00:07]} 32. Bxb8 {[%emt 0:00:07]} Rxa2 {[%emt 0:00:13]} 33. b4 {[%emt 0:03:11]} a5 {[%emt 0:01:56]} 34. bxa5 {[%emt 0:00:34]} bxa5 {[%emt 0:00:08]} 35. Bd6 {[%emt 0:00:13]} a4 {[%emt 0:00:39]} 36. Ra3 {[%emt 0:02:39]} Rxa3 {[%emt 0:00:08]} 37. Bxa3 {[%emt 0:00:05]} g6 {[%emt 0:00:06]} 38. Kf1 {[%emt 0:00:39]} h5 {[%emt 0:00:55]} 39. h4 {[%emt 0:00:13]} Kg7 {[%emt 0:00:27]} 40. Be7 {[%emt 0:00:07]} f6 {[%emt 0:00:48]} 41. g3 {[%emt 0:00:38]} Kf7 {[%emt 0:00:15]} 42. Bc5 {[%emt 0:00:39]} g5 {[%emt 0:00:37]} 43. Ke2 {[%emt 0:02:28]} Kg6 {[%emt 0:00:43]} 44. Ke3 {[%emt 0:01:21]} Bb3 {[%emt 0:01:21]} 45. Bb4 {[%emt 0:03:43]} Ba2 {[%emt 0:00:17]} 46. Bc5 {[%emt 0:10:40]} 1/2-1/2